bitfinex/quotes_ETHUSD_20250520
["timestamp","ask_amount","ask_price","bid_price","bid_amount"]
[1747779287021,3.75906395,2501.2,2501.1,17.83684]
[1747779287346,0.8017,2502.0,2501.1,17.83684]
[1747779287347,3.99785311,2501.4,2501.2,0.8212]
[1747779287535,3.9976787,2501.5,2501.3,15.605457]
[1747779287823,3.9974046,2501.7,2501.4,22.52547]
[1747779287994,3.997469,2501.6,2501.5,18.0792]
[1747779288191,3.997469,2501.6,2501.5,42.2297004]
[1747779289118,3.99735014,2501.7,2501.5,42.2297004]
[1747779289926,3.99735014,2501.7,2501.6,0.7945]
[1747779290728,3.99735014,2501.7,2501.6,9.7825]
[1747779290893,3.99735014,2501.7,2501.6,13.68486288]
[1747779294452,3.99735014,2501.7,2501.6,4.69686288]
[1747779294657,3.99735014,2501.7,2501.6,25.96086288]
[1747779295934,0.8087,2502.5,2501.6,25.96086288]
[1747779295935,0.8223,2502.8,2501.7,0.8289]
[1747779296251,3.99640804,2502.3,2501.9,11.62676143]
[1747779296455,3.99640804,2502.3,2501.9,8.8289]
[1747779296456,3.99653721,2502.2,2501.9,8.8289]
[1747779296655,0.37187099,2502.7,2501.9,8.8289]
[1747779296809,0.37187099,2502.7,2501.9,10.05174263]
[1747779296810,3.99680255,2502.0,2501.9,10.05174263]
[1747779297167,3.99680255,2502.0,2501.9,29.193]
[1747779298723,3.99661638,2502.2,2502.1,0.8192]
[1747779299235,3.99661638,2502.2,2502.1,22.0112]
[1747779300039,3.99661638,2502.2,2502.1,30.0112]
[1747779300263,3.99661638,2502.2,2502.1,33.01232]
[1747779300553,0.8162,2502.2,2502.1,12.205]
[1747779300841,0.8162,2502.2,2502.1,21.191]
[1747779300842,4.81268309,2502.2,2502.1,21.191]
[1747779301036,5.18422176,2502.2,2502.1,21.191]
[1747779302540,5.18422176,2502.2,2502.1,12.205]
[1747779302842,5.18422176,2502.2,2502.1,21.191]
[1747779303712,3.99567721,2502.8,2502.1,21.191]
[1747779303713,0.8105,2503.2,2502.2,8.0]
[1747779304070,3.99472696,2503.3,2502.5,0.801]
[1747779304210,3.99546366,2502.9,2502.7,8.0]
[1747779304565,3.99546366,2502.9,2502.8,12.7317]
[1747779305657,3.99536537,2502.9,2502.8,12.7317]
[1747779305960,3.99522584,2503.0,2502.9,0.8178]
[1747779306162,3.99522584,2503.0,2502.9,4.686247]
[1747779306455,3.99522584,2503.0,2502.9,4.2718]
[1747779306756,3.99522584,2503.0,2502.9,0.8178]
[1747779308120,3.99522584,2503.0,2502.9,4.95515786]
[1747779309871,3.99522584,2503.0,2502.9,1.50315786]
[1747779310168,3.99522584,2503.0,2502.9,4.95515786]
[1747779310314,3.99522584,2503.0,2502.9,1.50315786]
[1747779310515,3.99522584,2503.0,2502.9,4.95515786]
[1747779310918,3.99522584,2503.0,2502.9,1.50315786]
[1747779311767,3.99504614,2503.1,2503.0,0.8157]
[1747779311965,3.99568466,2502.7,2502.6,25.253]
[1747779312112,3.99568466,2502.7,2502.6,48.769828]
[1747779312312,3.99568466,2502.7,2502.6,23.48919088]
[1747779312517,3.99568466,2502.7,2502.6,43.275653]
[1747779312845,3.99562043,2502.8,2502.6,43.275653]
[1747779313050,3.99568466,2502.7,2502.6,46.436]
[1747779313535,3.99568466,2502.7,2502.6,51.275653]
[1747779313733,3.99568466,2502.7,2502.6,55.17801588]
[1747779315183,3.99546481,2502.9,2502.6,55.17801588]
[1747779315496,3.99546324,2502.9,2502.7,4.839653]
[1747779315841,0.7675,2503.4,2502.8,8.0]
[1747779316042,3.99495988,2503.2,2502.9,2.0931653]
[1747779316242,0.7675,2503.7,2502.9,0.8092]
[1747779316446,3.99481393,2503.3,2502.9,0.8092]
[1747779316656,3.99481393,2503.3,2503.0,5.20025433]
[1747779316859,3.99481393,2503.3,2503.1,17.039653]
[1747779316860,3.99490925,2503.2,2503.1,17.039653]
[1747779317092,3.99490925,2503.2,2503.1,26.022653]
[1747779318291,4.09387413,2503.9,2503.3,2.79629173]
[1747779318292,0.1,2503.9,2503.3,2.79629173]
[1747779318590,3.99409706,2503.7,2503.4,8.27962917]
[1747779318791,3.99409706,2503.7,2503.5,4.839653]
[1747779319100,3.99409706,2503.7,2503.6,30.2177]
[1747779319248,3.99409706,2503.7,2503.6,32.909]
[1747779319447,3.99409706,2503.7,2503.6,29.445]
[1747779320090,3.99409706,2503.7,2503.6,32.854502]
[1747779320294,3.99409706,2503.7,2503.6,29.445]
[1747779320896,3.99409706,2503.7,2503.6,37.33296592]
[1747779321200,3.99401591,2503.8,2503.6,36.51970492]
[1747779321352,3.99408874,2503.7,2503.6,32.49331292]
[1747779321667,3.99408874,2503.7,2503.6,44.88381492]
[1747779322071,3.99408874,2503.7,2503.6,41.47431292]
[1747779322505,3.99408874,2503.7,2503.6,38.425]
[1747779322702,3.99408874,2503.7,2503.6,29.444]
[1747779322889,3.99408874,2503.7,2503.6,38.425]
[1747779323307,3.99408874,2503.7,2503.6,29.444]
[1747779323508,4.36541426,2503.7,2503.6,29.444]
[1747779324672,4.36541426,2503.7,2503.6,17.246]
[1747779324976,4.36541426,2503.7,2503.6,38.423]
[1747779326007,4.36541426,2503.7,2503.6,51.0239]
[1747779326432,4.36541426,2503.7,2503.6,50.9279]
[1747779326634,3.99408874,2503.7,2503.6,50.9279]
[1747779327031,3.99408874,2503.7,2503.6,51.30661776]
[1747779327232,3.99398072,2503.8,2503.6,51.30661776]
[1747779327426,4.09387804,2503.9,2503.7,11.4521]
[1747779327427,4.09389867,2503.9,2503.7,11.4521]
[1747779327634,4.09389867,2503.9,2503.7,8.0]
[1747779327635,3.99392922,2503.8,2503.7,8.0]
[1747779328613,3.99392922,2503.8,2503.7,29.081]
[1747779330235,3.99392922,2503.8,2503.7,20.101]
[1747779330535,3.99408874,2503.7,2503.6,25.246]
[1747779330742,3.99095723,2503.7,2503.6,46.326]
[1747779332347,4.36268671,2503.7,2503.6,29.345]
[1747779335949,3.99520575,2503.0,2502.9,0.47491883]
[1747779336249,3.99520575,2503.0,2502.9,21.55491883]
[1747779336449,4.36693523,2503.0,2502.9,21.55491883]
[1747779336650,4.36693523,2503.0,2502.9,25.45728171]
[1747779336873,5.15643523,2503.0,2502.9,12.57491883]
[1747779337059,5.15643523,2503.0,2502.9,21.08]
[1747779337236,5.15643523,2503.0,2502.9,21.46015266]
[1747779337431,4.36693523,2503.0,2502.9,29.46015266]
[1747779337767,4.36693523,2503.0,2502.9,33.36251554]
[1747779338475,3.99520575,2503.0,2502.9,38.20216854]
[1747779338673,3.9951205,2503.1,2502.9,38.20216854]
[1747779338974,3.99498045,2503.2,2502.9,33.36251554]
[1747779339135,3.99481502,2503.3,2503.0,8.79506288]
[1747779339354,3.99488654,2503.2,2503.1,4.839653]
[1747779339558,3.99472696,2503.3,2503.2,8.0]
[1747779339774,3.99472696,2503.3,2503.2,10.7309]
[1747779340086,3.99472696,2503.3,2503.2,12.27333629]
[1747779340458,3.99472696,2503.3,2503.2,9.54243629]
[1747779341480,3.99472696,2503.3,2503.2,9.92258895]
[1747779341681,3.99472696,2503.3,2503.2,12.65926595]
[1747779342082,3.99472696,2503.3,2503.2,0.38015266]
[1747779342083,4.82492696,2503.3,2503.2,0.38015266]
[1747779342285,4.82492696,2503.3,2503.2,12.48015266]
[1747779342683,5.19753495,2503.3,2503.2,12.48015266]
[1747779342889,5.19753495,2503.3,2503.2,12.1]
[1747779343089,5.42108485,2503.3,2503.2,12.1]
[1747779344700,5.42108485,2503.3,2502.8,17.241]
[1747779344904,3.99568466,2502.7,2502.4,12.101]
[1747779345198,3.99664282,2502.1,2502.0,17.71891883]
[1747779345401,3.99664282,2502.1,2502.0,29.81991883]
[1747779345896,3.99664282,2502.1,2502.0,17.71891883]
[1747779346074,4.79794282,2502.1,2502.0,29.81991883]
[1747779346395,5.17055081,2502.1,2502.0,29.81991883]
[1747779347000,5.17055081,2502.1,2502.0,17.71891883]
[1747779347302,5.17055081,2502.1,2502.0,29.81991883]
[1747779347476,5.17055081,2502.1,2502.0,29.345]
[1747779348700,5.17055081,2502.1,2502.0,17.244]
[1747779348901,4.79794282,2502.1,2502.0,17.244]
[1747779349468,4.79794282,2502.1,2502.0,29.347]
[1747779350108,3.99808092,2501.2,2501.1,0.1]
[1747779351569,3.99808092,2501.2,2501.1,13.0208]
[1747779351807,3.99808092,2501.2,2501.1,15.22128]
[1747779353580,3.99792108,2501.3,2501.1,15.22128]
[1747779353781,0.833,2502.1,2501.1,15.22128]
[1747779353978,3.99808092,2501.2,2501.1,15.22128]
[1747779354817,3.99808092,2501.2,2501.1,22.0058]
[1747779355613,3.99808092,2501.2,2501.1,0.9158]
[1747779355814,3.99808092,2501.2,2501.1,22.0078]
[1747779356312,3.99808092,2501.2,2501.1,21.231]
[1747779356515,4.81478092,2501.2,2501.1,0.1]
[1747779356715,5.36478092,2501.2,2501.1,0.1]
[1747779356916,13.73455579,2501.2,2501.1,0.1]
[1747779357280,14.1339422,2501.2,2501.1,0.1]
[1747779360901,12.57648002,2500.2,2500.1,0.1]
[1747779361098,15.85617515,2500.2,2500.1,0.1]
[1747779361299,4.0280804,2499.2,2498.8,12.62291883]
[1747779362021,4.0012804,2499.2,2498.8,12.148]
[1747779362986,4.0012804,2499.2,2498.4,8.8215]
[1747779363321,4.8037804,2499.2,2498.8,12.152]
[1747779363509,4.0012804,2499.2,2498.8,12.152]
[1747779364196,4.0012804,2499.2,2498.4,8.8215]
[1747779364396,4.0012804,2499.2,2499.1,12.252]
[1747779365819,4.0012804,2499.2,2499.1,13.4772]
[1747779366126,7.2796631,2500.1,2499.1,13.4772]
[1747779366127,4.00050924,2499.7,2499.1,13.4772]
[1747779366423,4.00120255,2499.3,2499.1,21.4772]
[1747779366594,4.78846797,2500.1,2499.2,2.23023]
[1747779366595,4.00030113,2499.9,2499.2,2.23023]
[1747779366808,4.00101177,2499.4,2499.3,17.265]
[1747779367138,4.00038401,2499.8,2499.4,0.8167]
[1747779367335,4.0006401,2499.6,2499.5,8.992]
[1747779367509,4.0006401,2499.6,2499.5,21.147]
[1747779367709,4.0006401,2499.6,2499.5,25.04936288]
[1747779368112,4.00038206,2499.8,2499.5,25.04936288]
[1747779368432,4.00043431,2499.8,2499.5,25.04936288]
[1747779368741,4.00022424,2499.9,2499.7,0.8197]
[1747779368939,4.00005732,2500.0,2499.7,0.8197]
[1747779368940,9.7797,2500.5,2499.8,12.839653]
[1747779369101,0.8035,2500.7,2499.8,12.839653]
[1747779369102,3.99856051,2500.9,2499.9,1.6659353]
[1747779369422,3.99991558,2500.1,2500.0,20.155]
[1747779369597,3.99941913,2500.4,2500.0,24.994653]
[1747779369799,3.99959509,2500.3,2500.2,0.7537]
[1747779370036,3.99959509,2500.3,2500.2,27.0107]
[1747779371299,0.7859,2500.2,2498.9,1.28571883]
[1747779371501,4.0012804,2499.2,2498.9,1.28571883]
[1747779371949,4.0012804,2499.2,2499.0,8.992]
[1747779372236,4.0012804,2499.2,2499.1,17.365]
[1747779372534,4.0012804,2499.2,2499.1,25.721433]
[1747779372695,4.0012804,2499.2,2499.1,31.95152]
[1747779372898,4.0012804,2499.2,2499.1,28.88178]
[1747779373238,4.0012804,2499.2,2499.1,25.365]
[1747779373411,4.0012804,2499.2,2499.1,17.365]
[1747779377939,4.0012804,2499.2,2499.1,26.358]
[1747779378156,4.0012804,2499.2,2499.1,17.365]
[1747779378306,4.0012804,2499.2,2499.1,29.522]
[1747779378511,4.37193194,2499.2,2499.1,29.522]
[1747779382542,5.72353194,2499.2,2499.1,0.1]
[1747779382743,5.76350583,2499.2,2499.1,0.1]
[1747779383117,13.94617226,2499.2,2499.1,0.1]
[1747779383522,4.00272185,2498.3,2498.2,12.158]
[1747779384407,4.37337339,2498.3,2498.2,12.158]
[1747779385111,4.00288207,2498.2,2498.1,0.1]
[1747779385311,4.00288207,2498.2,2497.1,0.1]
[1747779385312,4.00432467,2497.3,2497.1,0.1]
[1747779385532,4.03112467,2497.3,2497.1,0.1]
[1747779385937,4.00432467,2497.3,2497.2,0.42491883]
[1747779386261,4.37497621,2497.3,2497.2,30.23429166]
[1747779386555,4.37497621,2497.3,2497.2,9.78359166]
[1747779386865,4.37497621,2497.3,2497.2,30.83067283]
[1747779387163,4.00432467,2497.3,2497.2,30.83067283]
[1747779388222,4.00432467,2497.3,2497.2,8.65237283]
[1747779388427,4.00432467,2497.3,2497.1,0.1]
[1747779388428,4.00448502,2497.2,2497.1,12.525]
[1747779388643,4.00432467,2497.3,2497.1,12.525]
[1747779388644,4.00447063,2497.3,2497.1,12.525]
[1747779388851,4.00448502,2497.2,2497.1,12.525]
[1747779389246,4.00381577,2497.7,2497.1,13.2813]
[1747779389438,4.00381577,2497.7,2497.1,17.18366288]
[1747779389838,4.00420524,2497.4,2497.1,17.18366288]
[1747779390058,4.00420524,2497.4,2497.1,13.2813]
[1747779390257,4.00373111,2497.7,2497.1,13.2813]
[1747779390457,4.00410334,2497.5,2497.1,13.2813]
[1747779390659,4.00373111,2497.7,2497.1,13.2813]
[1747779390862,4.37471639,2497.9,2497.1,13.2813]
[1747779391053,4.37466689,2497.9,2497.4,0.7869]
[1747779391374,0.37119677,2497.9,2497.5,4.839653]
[1747779391665,4.0030817,2498.1,2497.7,0.7869]
[1747779391886,4.00293397,2498.2,2497.8,15.159043]
[1747779392160,4.0031806,2498.1,2497.9,21.425]
[1747779392361,4.0031806,2498.1,2498.0,22.117653]
[1747779392526,4.0031806,2498.1,2498.0,20.727]
[1747779392727,4.0031806,2498.1,2498.0,38.704]
[1747779398180,4.0031806,2498.1,2498.0,43.543653]
[1747779398358,4.0031806,2498.1,2498.0,45.30468788]
[1747779398558,4.0031806,2498.1,2498.0,42.60636288]
[1747779398742,4.0031806,2498.1,2498.0,45.30468788]
[1747779398944,4.0031806,2498.1,2498.0,32.403325]
[1747779399149,4.0031806,2498.1,2498.0,38.704]
[1747779400292,4.0031806,2498.1,2498.0,29.705]
[1747779400650,4.37498868,2498.1,2498.0,29.705]
[1747779402389,4.37498868,2498.1,2498.0,17.278]
[1747779402591,4.37498868,2498.1,2498.0,38.705]
[1747779402891,4.0031806,2498.1,2498.0,38.705]
[1747779404370,4.37544123,2498.1,2498.0,38.705]
[1747779406800,4.37544123,2498.1,2498.0,17.278]
[1747779407127,4.00432467,2497.3,2497.2,17.279]
[1747779407411,4.3765853,2497.3,2497.2,38.707]
[1747779408175,4.3765853,2497.3,2497.2,17.279]
[1747779408519,4.3765853,2497.3,2497.2,29.708]
[1747779409289,4.00448502,2497.2,2497.1,0.1]
[1747779409513,5.16344565,2497.2,2497.1,0.1]
[1747779410077,5.38727233,2497.2,2497.1,0.1]
[1747779410980,5.16344565,2497.2,2497.1,0.1]
[1747779411802,12.37674565,2497.2,2497.1,0.1]
[1747779412407,12.60054678,2497.2,2497.1,0.1]
[1747779412607,13.39914678,2497.2,2497.1,0.1]
[1747779413292,13.94914678,2497.2,2497.1,0.1]
[1747779414462,12.00560785,2496.5,2496.4,12.431]
[1747779414639,12.0057683,2496.4,2496.3,17.28]
[1747779414983,4.0057683,2496.4,2496.3,29.711]
[1747779418236,4.0057683,2496.4,2496.3,38.714]
[1747779418543,4.0057683,2496.4,2496.3,29.711]
[1747779420213,4.0057683,2496.4,2496.3,38.617]
[1747779420417,4.0057683,2496.4,2496.3,17.28]
[1747779420617,4.00608925,2496.2,2496.1,9.053]
[1747779420822,4.00608925,2496.2,2496.1,21.387]
[1747779421199,4.00608925,2496.2,2496.1,12.384]
[1747779421404,4.00608925,2496.2,2496.1,0.05]
[1747779421596,4.86026314,2496.2,2496.1,0.05]
[1747779421791,4.82028925,2496.2,2496.1,0.05]
[1747779422392,13.76512299,2496.2,2496.1,0.05]
[1747779422627,14.1367278,2496.2,2496.1,0.05]
[1747779422989,14.35963629,2496.2,2496.1,0.05]
[1747779423902,5.80963629,2496.2,2496.1,0.05]
[1747779424225,4.99543629,2496.2,2496.1,0.05]
[1747779424423,6.35963629,2496.2,2496.1,0.05]
[1747779424619,5.98803148,2496.2,2496.1,0.05]
[1747779424920,5.21512299,2496.2,2496.1,0.05]
[1747779425430,5.25509688,2496.2,2496.1,0.05]
[1747779425936,23.9164278,2496.2,2496.1,0.05]
[1747779426092,28.1204278,2496.2,2496.1,0.05]
[1747779426420,4.58337077,2495.9,2495.8,0.66666667]
[1747779426836,4.40497558,2495.9,2495.8,0.66666667]
[1747779427397,4.03337077,2495.9,2495.8,0.66666667]
[1747779427593,4.07334466,2495.9,2495.8,0.66666667]
[1747779429031,4.03337077,2495.9,2495.8,0.66666667]
[1747779429834,4.00657077,2495.9,2495.8,0.66666667]
[1747779433058,13.36224466,2495.9,2495.8,0.66666667]
[1747779433213,13.32227077,2495.9,2495.8,0.66666667]
[1747779433549,13.69387558,2495.9,2495.8,0.66666667]
[1747779434043,13.14387558,2495.9,2495.8,0.66666667]
[1747779434591,5.14387558,2495.9,2495.8,0.66666667]
[1747779434848,4.37817558,2495.9,2495.8,0.66666667]
[1747779435247,13.72037558,2495.9,2495.8,0.66666667]
[1747779435549,16.50559937,2495.9,2495.8,0.66666667]
[1747779435752,16.72861922,2495.9,2495.8,0.66666667]
[1747779436250,17.10022403,2495.9,2495.8,0.66666667]
[1747779436759,21.30422403,2495.9,2495.8,0.66666667]
[1747779437245,13.94339543,2495.9,2495.8,0.66666667]
[1747779437853,16.34139543,2495.9,2495.8,0.66666667]
[1747779438169,16.34139543,2495.9,2495.8,0.65563601]
[1747779438170,23.70222403,2495.9,2495.8,0.65563601]
[1747779438373,5.39339543,2495.9,2495.8,0.65563601]
[1747779439950,4.60119543,2495.9,2495.8,0.65563601]
[1747779440135,4.37817558,2495.9,2495.8,12.99763601]
[1747779440335,4.37817558,2495.9,2495.8,0.60563601]
[1747779440565,4.37817558,2495.9,2495.8,12.94763601]
[1747779441068,4.37817558,2495.9,2495.8,14.24289961]
[1747779441269,4.37817558,2495.9,2495.8,15.04629961]
[1747779441843,4.00657077,2495.9,2495.8,24.05529961]
[1747779442971,4.00657077,2495.9,2495.8,2.70429961]
[1747779443144,4.00657077,2495.9,2495.8,12.94663601]
[1747779443576,4.37817558,2495.9,2495.8,12.94663601]
[1747779444348,4.00657077,2495.9,2495.8,12.94663601]
[1747779444552,4.00657077,2495.9,2495.8,13.70683601]
[1747779444753,4.00657077,2495.9,2495.8,15.07801961]
[1747779446150,4.00657077,2495.9,2495.8,13.70683601]
[1747779446348,4.37963206,2495.9,2495.8,13.70683601]
[1747779448048,4.00657077,2495.9,2495.8,13.70683601]
[1747779449891,4.38015003,2495.9,2495.8,13.70683601]
[1747779450885,4.38015003,2495.9,2495.8,0.60563601]
[1747779451049,4.38015003,2495.9,2495.8,13.15663601]
[1747779451752,4.00657077,2495.9,2495.8,0.60563601]
[1747779452115,4.00657077,2495.9,2495.8,22.97863601]
[1747779452249,4.00657077,2495.9,2495.8,25.27699961]
[1747779452587,4.00657077,2495.9,2495.8,25.65920341]
[1747779453792,4.00657077,2495.9,2495.8,30.49885641]
[1747779453987,4.00647459,2496.0,2495.9,0.787]
[1747779454299,4.00647459,2496.0,2495.9,3.35022034]
[1747779455099,4.00647459,2496.0,2495.9,8.18987334]
[1747779455774,4.00647459,2496.0,2495.9,8.57207714]
[1747779456089,4.00464538,2497.1,2496.1,0.8162]
[1747779456392,4.00594355,2496.3,2496.2,17.295]
[1747779456601,4.00594355,2496.3,2496.2,32.3745]
[1747779456763,4.00594355,2496.3,2496.2,33.1907]
[1747779456964,4.00565626,2496.5,2496.2,33.1907]
[1747779457165,4.00587399,2496.4,2496.3,0.8162]
[1747779457366,4.00567407,2496.5,2496.4,0.8162]
[1747779457579,4.00553728,2496.6,2496.4,0.8162]
[1747779457774,4.00553728,2496.6,2496.5,9.8232]
[1747779457974,4.00553728,2496.6,2496.5,11.137427]
[1747779458876,4.00553728,2496.6,2496.5,2.130427]
[1747779459078,4.00553728,2496.6,2496.5,9.8222]
[1747779459263,4.00553728,2496.6,2496.5,14.661853]
[1747779459470,4.00542799,2496.7,2496.5,13.14904]
[1747779459665,4.00542799,2496.7,2496.6,2.77564]
[1747779460470,4.00542799,2496.7,2496.6,0.8]
[1747779460798,4.00542799,2496.7,2496.6,5.2236]
[1747779462190,4.00542799,2496.7,2496.6,4.702976]
[1747779462605,4.00528351,2496.8,2496.6,4.702976]
[1747779462916,4.00528351,2496.8,2496.7,16.644142]
[1747779463115,4.00503925,2496.9,2496.7,20.1872162]
[1747779463313,4.0050973,2496.9,2496.8,4.839653]
[1747779463982,4.00512656,2496.8,2496.7,16.0910742]
[1747779464190,4.00496615,2496.9,2496.8,8.8]
[1747779464383,4.00496615,2496.9,2496.8,10.50716742]
[1747779465997,4.00470292,2497.1,2496.8,10.50716742]
[1747779466821,4.00481177,2497.0,2496.9,29.552]
[1747779467034,4.00481177,2497.0,2496.9,32.75791674]
[1747779467740,4.00481177,2497.0,2496.9,3.20591674]
[1747779467926,4.00528697,2496.7,2496.6,0.8207]
[1747779468224,4.00528697,2496.7,2496.6,17.8247]
[1747779468891,4.00528697,2496.7,2496.6,20.240405]
[1747779469092,4.00528697,2496.7,2496.6,17.8247]
[1747779469893,4.00412267,2497.5,2496.6,8.697323]
[1747779470201,4.00412267,2497.5,2496.7,21.549]
[1747779470401,4.00514213,2496.8,2496.7,29.549]
[1747779472024,4.00500134,2496.9,2496.7,34.388653]
[1747779472025,4.00502927,2496.9,2496.7,34.388653]
[1747779472192,4.00502927,2496.9,2496.8,2.186332]
[1747779472389,4.00502927,2496.9,2496.8,3.2556032]
[1747779474638,4.00512656,2496.8,2496.7,20.545]
[1747779474930,4.00512656,2496.8,2496.7,8.0]
[1747779475096,4.00512656,2496.8,2496.7,29.548]
[1747779479616,4.00512656,2496.8,2496.7,29.92965158]
[1747779479814,4.00512656,2496.8,2496.7,36.21478674]
[1747779480026,4.00508044,2496.9,2496.7,35.42237674]
[1747779480233,4.00512656,2496.8,2496.7,33.00468674]
[1747779480407,4.00512656,2496.8,2496.7,35.77428674]
[1747779480742,4.00512656,2496.8,2496.7,32.78968674]
[1747779480905,4.00512656,2496.8,2496.7,25.66865158]
[1747779481110,4.00512656,2496.8,2496.7,47.00165158]
[1747779481839,4.00512656,2496.8,2496.7,29.99865158]
[1747779482043,4.00512656,2496.8,2496.7,39.00165158]
[1747779484375,4.00508044,2496.9,2496.7,42.41575158]
[1747779484376,4.00510943,2496.9,2496.7,42.41575158]
[1747779484680,4.00448502,2497.2,2496.7,42.41575158]
[1747779484681,4.00460485,2497.2,2496.9,0.8291]
[1747779484885,9.7797,2497.7,2497.2,0.75]
[1747779485186,4.00371495,2497.7,2497.5,0.75]
[1747779485359,4.00371495,2497.7,2497.6,23.000653]
[1747779485671,4.00371495,2497.7,2497.6,20.97963]
[1747779486024,4.00371495,2497.7,2497.6,18.161]
[1747779486222,4.00371495,2497.7,2497.6,17.286]
[1747779486444,4.04368884,2497.7,2497.6,26.289]
[1747779486654,4.00371495,2497.7,2497.6,26.289]
[1747779487221,4.00371495,2497.7,2497.6,17.286]
[1747779487456,4.81381495,2497.7,2497.6,29.616]
[1747779487864,5.03810795,2497.7,2497.6,29.616]
[1747779488064,4.00496615,2496.9,2496.8,0.47709378]
[1747779488866,4.04494004,2496.9,2496.8,0.47709378]
[1747779489163,4.04494004,2496.9,2496.6,12.33]
[1747779489164,4.00528697,2496.7,2496.6,12.33]
[1747779489471,4.81538697,2496.7,2496.6,12.33]
[1747779490575,4.81538697,2496.7,2496.6,21.333]
[1747779491006,4.81538697,2496.7,2496.4,17.286]
[1747779491264,4.81651025,2496.0,2495.9,0.47709378]
[1747779491464,13.36651025,2496.0,2495.9,0.47709378]
[1747779491839,13.59080325,2496.0,2495.9,0.47709378]
[1747779492260,5.59080325,2496.0,2495.9,0.47709378]
[1747779492452,4.00689185,2495.7,2495.1,0.1]
[1747779492632,5.39016574,2495.7,2495.1,0.1]
[1747779492839,5.35019185,2495.7,2495.1,0.1]
[1747779493171,4.80019185,2495.7,2495.1,0.1]
[1747779493928,13.39016574,2495.7,2495.1,0.1]
[1747779494257,13.57448485,2495.7,2495.2,12.33]
[1747779494663,5.02448485,2495.7,2495.2,12.33]
[1747779494972,5.35019185,2495.7,2495.2,12.33]
[1747779495765,5.35019185,2495.7,2495.1,0.1]
[1747779497871,13.72053009,2495.7,2495.1,0.1]
[1747779498483,13.17053009,2495.7,2495.1,0.1]
[1747779498644,5.17053009,2495.7,2495.1,0.1]
[1747779499539,4.80019185,2495.7,2495.1,0.1]
[1747779499974,4.80019185,2495.7,2495.5,12.336]
[1747779500168,4.00689185,2495.7,2495.5,12.336]
[1747779501177,4.00689185,2495.7,2495.1,0.1]
[1747779501178,4.81609185,2495.7,2495.1,0.1]
[1747779501343,14.59579185,2495.7,2495.1,0.1]
[1747779502375,14.59579185,2495.7,2495.2,12.337]
[1747779503178,14.59579185,2495.7,2495.1,0.1]
[1747779503374,14.59579185,2495.7,2495.2,12.337]
[1747779505577,14.96585389,2495.7,2495.2,12.337]
[1747779506163,14.96585389,2495.7,2495.1,0.1]
[1747779506366,14.96585389,2495.7,2495.1,12.439]
[1747779506567,14.59579185,2495.7,2495.1,12.439]
[1747779508086,13.78659185,2495.7,2495.1,12.439]
[1747779508260,13.78659185,2495.7,2495.3,0.8024]
[1747779508577,13.78659185,2495.7,2495.6,12.37]
[1747779511576,13.78659185,2495.7,2495.6,0.005]
[1747779511773,13.78659185,2495.7,2495.6,12.37]
[1747779513374,13.78659185,2495.7,2495.6,0.005]
[1747779513967,14.59249185,2495.7,2495.6,0.005]
[1747779514361,14.96347225,2495.7,2495.6,0.005]
[1747779515089,14.96727225,2495.7,2495.6,0.005]
[1747779515601,15.19020375,2495.7,2495.6,0.005]
[1747779518287,14.38050375,2495.7,2495.6,0.005]
[1747779519821,15.72980375,2495.7,2495.6,0.005]
[1747779520006,30.98246486,2495.7,2495.6,0.005]
[1747779520181,26.77846486,2495.7,2495.6,0.005]
[1747779520774,23.17980375,2495.7,2495.6,0.005]
[1747779521526,4.00769477,2495.2,2495.1,12.466]
[1747779521913,4.23062627,2495.2,2495.1,12.466]
[1747779522119,4.23062627,2495.2,2495.1,12.467]
[1747779522926,4.23062627,2495.2,2495.1,0.1]
[1747779523126,4.60160667,2495.2,2495.1,0.1]
[1747779525143,4.99593405,2495.2,2495.1,0.1]
[1747779525932,14.77563405,2495.2,2495.1,0.1]
[1747779529242,14.38130667,2495.2,2495.1,0.1]
[1747779530343,14.38130667,2495.2,2495.1,1.47470517]
[1747779530744,14.15837517,2495.2,2495.1,1.47470517]
[1747779531538,4.37867517,2495.2,2495.1,13.2507]
[1747779533357,4.37867517,2495.2,2495.1,0.1]
[1747779533671,4.64252769,2495.2,2495.1,0.1]
[1747779534357,13.43152769,2495.2,2495.1,0.1]
[1747779534530,13.3915538,2495.2,2495.1,0.1]
[1747779534967,13.9415538,2495.2,2495.1,0.1]
[1747779535139,18.1455538,2495.2,2495.1,0.1]
[1747779537554,13.3915538,2495.2,2495.1,0.1]
[1747779537968,23.1712538,2495.2,2495.1,0.1]
[1747779538970,23.7212538,2495.2,2495.1,0.1]
[1747779539783,23.1712538,2495.2,2495.1,0.1]
[1747779540002,14.3822538,2495.2,2495.1,0.1]
[1747779541074,14.3822538,2495.2,2495.1,12.344]
[1747779541770,14.3822538,2495.2,2495.1,0.1]
[1747779542183,15.7423538,2495.2,2495.1,0.1]
[1747779543613,15.1923538,2495.2,2495.1,0.1]
[1747779544600,14.3822538,2495.2,2495.1,0.1]
[1747779545478,14.3822538,2495.2,2495.1,12.344]
[1747779547721,14.3822538,2495.2,2495.1,13.1165]
[1747779547928,14.3822538,2495.2,2495.1,15.32935]
[1747779548212,4.6025538,2495.2,2495.1,15.32935]
[1747779548421,4.37867517,2495.2,2495.1,15.32935]
[1747779550923,4.00769477,2495.2,2495.1,15.32935]
[1747779551141,4.00769477,2495.2,2495.1,32.63235]
[1747779551581,4.00766783,2495.3,2495.2,0.8073]
[1747779551791,4.37997632,2495.4,2495.3,0.8073]
[1747779552190,4.37988389,2495.4,2495.3,0.8073]
[1747779552384,4.00737356,2495.4,2495.3,0.8073]
[1747779553796,4.00737356,2495.4,2495.3,1.18977924]
[1747779554023,4.00737356,2495.4,2495.3,4.82106566]
[1747779555606,4.00737356,2495.4,2495.3,4.43858642]
[1747779555807,4.00737356,2495.4,2495.3,4.46218642]
[1747779557814,4.00769477,2495.2,2495.1,17.403]
[1747779558013,4.00769477,2495.2,2495.1,39.4261]
[1747779558220,4.00769477,2495.2,2495.1,30.4161]
[1747779558421,4.00769477,2495.2,2495.1,39.4261]
[1747779559952,4.00769477,2495.2,2495.1,30.4161]